[Event "Titled Tuesday Blitz August 22 Early 2023"]
[White "Labussiere, Yago"]
[Black "Sailer, Mike"]
[WhiteFideId "2186969"]
[BlackFideId "2012901"]
[WhiteElo "2374"]
[BlackElo "2233"]
[Result "1-0"]
[Round "10"]
[TimeControl "180+1"]
[Date "2023.08.22"]
[WhiteClock "0:00:51"]
[BlackClock "0:00:00"]
[Board "147"]

1. c4 {[%clk 0:03:00]}  e6 {[%clk 0:02:58]} 2. d4 {[%clk 0:02:59]}  f5 {[%clk 0:02:58]} 3. Nf3 {[%clk 0:03:00]}  Nf6 {[%clk 0:02:58]} 4. g3 {[%clk 0:02:59]}  Be7 {[%clk 0:02:58]} 5. Bg2 {[%clk 0:02:59]}  O-O {[%clk 0:02:54]} 6. O-O {[%clk 0:03:00]}  d5 {[%clk 0:02:44]} 7. Bf4 {[%clk 0:02:56]}  c6 {[%clk 0:02:44]} 8. Nbd2 {[%clk 0:02:50]}  Nbd7 {[%clk 0:02:41]} 9. Ne5 {[%clk 0:02:50]}  Ne4 {[%clk 0:02:36]} 10. Nxd7 {[%clk 0:02:44]}  Bxd7 {[%clk 0:02:35]} 11. Qb3 {[%clk 0:02:36]}  Qb6 {[%clk 0:02:23]} 12. c5 {[%clk 0:02:33]}  Nxd2 {[%clk 0:02:20]} 13. Bxd2 {[%clk 0:02:32]}  Qxb3 {[%clk 0:02:20]} 14. axb3 {[%clk 0:02:32]}  a6 {[%clk 0:02:19]} 15. Bf4 {[%clk 0:02:30]}  g5 {[%clk 0:02:15]} 16. Be5 {[%clk 0:02:30]}  Bf6 {[%clk 0:02:15]} 17. f4 {[%clk 0:02:24]}  g4 {[%clk 0:02:03]} 18. h3 {[%clk 0:02:20]}  h5 {[%clk 0:02:03]} 19. hxg4 {[%clk 0:02:20]}  hxg4 {[%clk 0:02:02]} 20. Kf2 {[%clk 0:02:20]}  Kg7 {[%clk 0:02:02]} 21. Ke3 {[%clk 0:02:17]}  Rh8 {[%clk 0:02:00]} 22. Rg1 {[%clk 0:02:17]}  Rh2 {[%clk 0:01:48]} 23. Kd2 {[%clk 0:02:16]}  Rah8 {[%clk 0:01:44]} 24. Kc3 {[%clk 0:02:16]}  Kf7 {[%clk 0:01:43]} 25. Bxf6 {[%clk 0:02:15]}  Kxf6 {[%clk 0:01:43]} 26. Kb4 {[%clk 0:02:16]}  Ke7 {[%clk 0:01:41]} 27. Ka5 {[%clk 0:02:15]}  Kd8 {[%clk 0:01:41]} 28. Kb6 {[%clk 0:02:16]}  Kc8 {[%clk 0:01:41]} 29. e3 {[%clk 0:01:32]}  Kb8 {[%clk 0:01:36]} 30. Rae1 {[%clk 0:01:29]}  Bc8 {[%clk 0:01:28]} 31. Re2 {[%clk 0:01:28]}  Bd7 {[%clk 0:01:20]} 32. Ree1 {[%clk 0:01:28]}  Bc8 {[%clk 0:01:20]} 33. Ka5 {[%clk 0:01:07]}  Kc7 {[%clk 0:01:19]} 34. Kb4 {[%clk 0:01:08]}  Bd7 {[%clk 0:01:02]} 35. Kc3 {[%clk 0:01:07]}  b6 {[%clk 0:00:59]} 36. b4 {[%clk 0:01:06]}  b5 {[%clk 0:00:57]} 37. Kd2 {[%clk 0:01:04]}  Kb7 {[%clk 0:00:52]} 38. Ke2 {[%clk 0:01:04]}  Bc8 {[%clk 0:00:47]} 39. Kf2 {[%clk 0:01:03]}  Bd7 {[%clk 0:00:48]} 40. Ra1 {[%clk 0:01:03]}  Bc8 {[%clk 0:00:47]} 41. Ra2 {[%clk 0:01:03]}  Kc7 {[%clk 0:00:45]} 42. Rga1 {[%clk 0:01:03]}  Bb7 {[%clk 0:00:46]} 43. Kg1 {[%clk 0:01:02]}  Kb8 {[%clk 0:00:41]} 44. b3 {[%clk 0:01:03]}  Kc7 {[%clk 0:00:41]} 45. Ra5 {[%clk 0:01:03]}  Kb8 {[%clk 0:00:41]} 46. R5a2 {[%clk 0:01:02]}  Kc7 {[%clk 0:00:41]} 47. Re2 {[%clk 0:01:03]}  Kb8 {[%clk 0:00:41]} 48. Kf2 {[%clk 0:01:04]}  R8h3 {[%clk 0:00:38]} 49. Ree1 {[%clk 0:01:02]}  Bc8 {[%clk 0:00:35]} 50. Ra2 {[%clk 0:01:01]}  Bb7 {[%clk 0:00:34]} 51. Rea1 {[%clk 0:01:01]}  Ka7 {[%clk 0:00:30]} 52. Ra3 {[%clk 0:01:01]}  Bc8 {[%clk 0:00:29]} 53. Ra5 {[%clk 0:01:01]}  Bb7 {[%clk 0:00:29]} 54. R5a2 {[%clk 0:01:00]}  Bc8 {[%clk 0:00:30]} 55. Kg1 {[%clk 0:01:00]}  Rh7 {[%clk 0:00:27]} 56. Bf1 {[%clk 0:00:57]}  Rxa2 {[%clk 0:00:26]} 57. Rxa2 {[%clk 0:00:58]}  Kb7 {[%clk 0:00:23]} 58. Bg2 {[%clk 0:00:59]}  Bd7 {[%clk 0:00:24]} 59. Ra3 {[%clk 0:00:59]}  Bc8 {[%clk 0:00:24]} 60. Ra1 {[%clk 0:01:00]}  Bd7 {[%clk 0:00:25]} 61. Kf2 {[%clk 0:01:00]}  Bc8 {[%clk 0:00:25]} 62. Rg1 {[%clk 0:01:00]}  Bd7 {[%clk 0:00:24]} 63. Re1 {[%clk 0:01:01]}  Bc8 {[%clk 0:00:24]} 64. e4 {[%clk 0:01:02]}  dxe4 {[%clk 0:00:23]} 65. d5 {[%clk 0:01:02]}  exd5 {[%clk 0:00:18]} 66. Ke3 {[%clk 0:01:03]}  Rh2 {[%clk 0:00:15]} 67. Rg1 {[%clk 0:01:00]}  Kc7 {[%clk 0:00:15]} 68. Kd4 {[%clk 0:01:01]}  Kd7 {[%clk 0:00:09]} 69. Bf1 {[%clk 0:01:00]}  Ke7 {[%clk 0:00:08]} 70. Ke5 {[%clk 0:00:55]}  Rb2 {[%clk 0:00:04]} 71. Rh1 {[%clk 0:00:54]}  Rxb3 {[%clk 0:00:04]} 72. Rh7+ {[%clk 0:00:54]}  Kd8 {[%clk 0:00:05]} 73. Kd6 {[%clk 0:00:54]}  Bd7 {[%clk 0:00:04]} 74. Rh8+ {[%clk 0:00:53]}  Be8 {[%clk 0:00:04]} 75. Rh7 {[%clk 0:00:54]}  Rxb4 {[%clk 0:00:04]} 76. Ra7 {[%clk 0:00:54]}  Bd7 {[%clk 0:00:03]} 77. Ra8+ {[%clk 0:00:54]}  Bc8 {[%clk 0:00:03]} 78. Ra7 {[%clk 0:00:55]}  d4 {[%clk 0:00:03]} 79. Rh7 {[%clk 0:00:54]}  Bd7 {[%clk 0:00:04]} 80. Rxd7+ {[%clk 0:00:55]}  Kc8 {[%clk 0:00:04]} 81. Kxc6 {[%clk 0:00:54]}  d3 {[%clk 0:00:04]} 82. Bxd3 {[%clk 0:00:53]}  exd3 {[%clk 0:00:04]} 83. Rxd3 {[%clk 0:00:54]}  Rc4 {[%clk 0:00:04]} 84. Re3 {[%clk 0:00:51]}  Re4 {[%clk 0:00:04]} 85. Rxe4 {[%clk 0:00:49]}  fxe4 {[%clk 0:00:04]} 86. f5 {[%clk 0:00:50]}  e3 {[%clk 0:00:05]} 87. f6 {[%clk 0:00:50]}  e2 {[%clk 0:00:05]} 88. f7 {[%clk 0:00:51]}  e1=Q {[%clk 0:00:00]} 89. f8=Q+ {[%clk 0:00:51]} 1-0


[Site "https://www.chess.com"]

[Event "Titled Tuesday Blitz August 22 Early 2023"]
[White "Ovezdurdyyeva, Jemal"]
[Black "Thiel, Thomas"]
[WhiteFideId "14001888"]
[BlackFideId "4615964"]
[WhiteElo "2373"]
[BlackElo "2233"]
[Result "1-0"]
[Round "10"]
[TimeControl "180+1"]
[Date "2023.08.22"]
[WhiteClock "0:00:49"]
[BlackClock "0:00:14"]
[Board "148"]

1. e4 {[%clk 0:03:00]}  d5 {[%clk 0:02:59]} 2. exd5 {[%clk 0:03:00]}  Nf6 {[%clk 0:02:59]} 3. d4 {[%clk 0:02:59]}  Nxd5 {[%clk 0:02:59]} 4. c4 {[%clk 0:03:00]}  Nb6 {[%clk 0:02:57]} 5. Nc3 {[%clk 0:03:00]}  e5 {[%clk 0:02:57]} 6. Nf3 {[%clk 0:02:52]}  exd4 {[%clk 0:02:55]} 7. Nxd4 {[%clk 0:02:51]}  Bb4 {[%clk 0:02:54]} 8. Be2 {[%clk 0:02:45]}  O-O {[%clk 0:02:49]} 9. O-O {[%clk 0:02:45]}  Bxc3 {[%clk 0:02:48]} 10. bxc3 {[%clk 0:02:45]}  c5 {[%clk 0:02:33]} 11. Nb5 {[%clk 0:02:43]}  Bd7 {[%clk 0:02:22]} 12. Nd6 {[%clk 0:02:37]}  Bc6 {[%clk 0:02:20]} 13. Be3 {[%clk 0:02:33]}  Na6 {[%clk 0:02:16]} 14. Qd2 {[%clk 0:02:17]}  Qd7 {[%clk 0:02:14]} 15. Bf4 {[%clk 0:02:05]}  Rad8 {[%clk 0:02:10]} 16. Qc2 {[%clk 0:02:03]}  Qe6 {[%clk 0:02:04]} 17. Nf5 {[%clk 0:01:54]}  Be4 {[%clk 0:01:53]} 18. Nxg7 {[%clk 0:01:40]}  Bxc2 {[%clk 0:01:50]} 19. Nxe6 {[%clk 0:01:41]}  fxe6 {[%clk 0:01:49]} 20. Be5 {[%clk 0:01:39]}  Bd3 {[%clk 0:01:44]} 21. Bxd3 {[%clk 0:01:34]}  Rxd3 {[%clk 0:01:45]} 22. Bg3 {[%clk 0:01:17]}  Nxc4 {[%clk 0:01:45]} 23. Rfe1 {[%clk 0:01:18]}  Re8 {[%clk 0:01:42]} 24. Re4 {[%clk 0:01:18]}  b5 {[%clk 0:01:37]} 25. a4 {[%clk 0:01:16]}  Nd6 {[%clk 0:01:23]} 26. Rg4+ {[%clk 0:01:15]}  Kf7 {[%clk 0:01:21]} 27. axb5 {[%clk 0:01:15]}  Nxb5 {[%clk 0:01:19]} 28. h4 {[%clk 0:01:11]}  Nac7 {[%clk 0:01:09]} 29. c4 {[%clk 0:01:07]}  Rd4 {[%clk 0:00:56]} 30. Rxd4 {[%clk 0:01:04]}  cxd4 {[%clk 0:00:56]} 31. cxb5 {[%clk 0:01:04]}  Nxb5 {[%clk 0:00:56]} 32. Ra5 {[%clk 0:01:01]}  Nc3 {[%clk 0:00:44]} 33. Rxa7+ {[%clk 0:01:01]}  Kg6 {[%clk 0:00:43]} 34. Be5 {[%clk 0:00:56]}  Rd8 {[%clk 0:00:25]} 35. g4 {[%clk 0:00:51]}  h5 {[%clk 0:00:14]} 36. Rg7+ {[%clk 0:00:49]} 1-0


[Site "https://www.chess.com"]

[Event "Titled Tuesday Blitz August 22 Early 2023"]
[White "Yuruultei Batbaatar"]
[Black "Flis, Pawel"]
[WhiteFideId "4905962"]
[BlackFideId "1112864"]
[WhiteElo "2361"]
[BlackElo "2152"]
[Result "1-0"]
[Round "10"]
[TimeControl "180+1"]
[Date "2023.08.22"]
[WhiteClock "0:01:44"]
[BlackClock "0:00:00"]
[Board "150"]

1. d4 {[%clk 0:03:00]}  Nf6 {[%clk 0:02:59]} 2. c4 {[%clk 0:03:01]}  c5 {[%clk 0:02:59]} 3. d5 {[%clk 0:03:00]}  b5 {[%clk 0:02:59]} 4. cxb5 {[%clk 0:03:01]}  a6 {[%clk 0:03:00]} 5. e3 {[%clk 0:02:59]}  e6 {[%clk 0:02:52]} 6. dxe6 {[%clk 0:02:57]}  fxe6 {[%clk 0:02:52]} 7. Nf3 {[%clk 0:02:55]}  d5 {[%clk 0:02:52]} 8. b3 {[%clk 0:02:55]}  Bd6 {[%clk 0:02:49]} 9. Bb2 {[%clk 0:02:55]}  O-O {[%clk 0:02:49]} 10. Bd3 {[%clk 0:02:54]}  axb5 {[%clk 0:02:48]} 11. Bxb5 {[%clk 0:02:51]}  Ba6 {[%clk 0:02:43]} 12. Bxa6 {[%clk 0:02:49]}  Rxa6 {[%clk 0:02:43]} 13. O-O {[%clk 0:02:49]}  Nc6 {[%clk 0:02:43]} 14. Nbd2 {[%clk 0:02:49]}  Qa8 {[%clk 0:02:35]} 15. a3 {[%clk 0:02:43]}  Ng4 {[%clk 0:02:26]} 16. e4 {[%clk 0:02:38]}  d4 {[%clk 0:02:18]} 17. Nc4 {[%clk 0:02:34]}  Bc7 {[%clk 0:01:28]} 18. Nxd4 {[%clk 0:02:32]}  Nxh2 {[%clk 0:01:13]} 19. Nxe6 {[%clk 0:02:24]}  Qc8 {[%clk 0:00:32]} 20. Nxf8 {[%clk 0:02:16]}  Nxf1 {[%clk 0:00:28]} 21. Qd5+ {[%clk 0:02:00]}  Kxf8 {[%clk 0:00:25]} 22. Rxf1 {[%clk 0:01:53]}  Ne7 {[%clk 0:00:11]} 23. Qg5 {[%clk 0:01:50]}  Rg6 {[%clk 0:00:10]} 24. Qxc5 {[%clk 0:01:45]}  Qg4 {[%clk 0:00:09]} 25. Ne3 {[%clk 0:01:46]}  Qc8 {[%clk 0:00:00]} 26. Rc1 {[%clk 0:01:44]} 1-0


[Site "https://www.chess.com"]

[Event "Titled Tuesday Blitz August 22 Early 2023"]
[White "Buscar, Michael"]
[Black "Clawitter, Craig"]
[WhiteFideId "2603616"]
[BlackFideId "2023105"]
[WhiteElo "2339"]
[BlackElo "2220"]
[Result "1-0"]
[Round "10"]
[TimeControl "180+1"]
[Date "2023.08.22"]
[WhiteClock "0:00:37"]
[BlackClock "0:00:05"]
[Board "156"]

1. e4 {[%clk 0:02:58]}  e6 {[%clk 0:03:00]} 2. d4 {[%clk 0:02:56]}  d5 {[%clk 0:03:00]} 3. Nc3 {[%clk 0:02:56]}  Bb4 {[%clk 0:03:00]} 4. e5 {[%clk 0:02:56]}  c5 {[%clk 0:03:00]} 5. a3 {[%clk 0:02:49]}  Bxc3+ {[%clk 0:03:00]} 6. bxc3 {[%clk 0:02:48]}  Ne7 {[%clk 0:03:01]} 7. Qg4 {[%clk 0:02:48]}  Qc7 {[%clk 0:03:00]} 8. Qxg7 {[%clk 0:02:44]}  Rg8 {[%clk 0:03:01]} 9. Qxh7 {[%clk 0:02:44]}  cxd4 {[%clk 0:03:01]} 10. Qd3 {[%clk 0:02:33]}  dxc3 {[%clk 0:02:51]} 11. Nf3 {[%clk 0:02:33]}  Nbc6 {[%clk 0:02:51]} 12. Bf4 {[%clk 0:02:31]}  Ng6 {[%clk 0:02:49]} 13. Bg3 {[%clk 0:02:30]}  Ngxe5 {[%clk 0:02:31]} 14. Nxe5 {[%clk 0:02:12]}  Nxe5 {[%clk 0:02:30]} 15. Qd4 {[%clk 0:02:11]}  f6 {[%clk 0:02:21]} 16. Bb5+ {[%clk 0:02:10]}  Bd7 {[%clk 0:02:13]} 17. Bxd7+ {[%clk 0:02:08]}  Kxd7 {[%clk 0:02:07]} 18. O-O {[%clk 0:02:07]}  Rac8 {[%clk 0:01:36]} 19. Rfe1 {[%clk 0:02:02]}  Qb6 {[%clk 0:01:21]} 20. Bxe5 {[%clk 0:01:52]}  fxe5 {[%clk 0:01:12]} 21. Qxe5 {[%clk 0:01:51]}  Rcf8 {[%clk 0:01:01]} 22. Re3 {[%clk 0:01:33]}  Rf5 {[%clk 0:00:49]} 23. Qxc3 {[%clk 0:01:26]}  Rgf8 {[%clk 0:00:49]} 24. Rf1 {[%clk 0:00:55]}  R8f7 {[%clk 0:00:22]} 25. Qd2 {[%clk 0:00:48]}  d4 {[%clk 0:00:17]} 26. Rb3 {[%clk 0:00:48]}  Qc6 {[%clk 0:00:12]} 27. Qxd4+ {[%clk 0:00:47]}  Rd5 {[%clk 0:00:13]} 28. Qxa7 {[%clk 0:00:45]}  Kc8 {[%clk 0:00:11]} 29. Qe3 {[%clk 0:00:40]}  Rg7 {[%clk 0:00:11]} 30. g3 {[%clk 0:00:37]}  Rgd7 {[%clk 0:00:05]} 31. Rc3 {[%clk 0:00:37]} 1-0


[Site "https://www.chess.com"]

[Event "Titled Tuesday Blitz August 22 Early 2023"]
[White "GAO"]
[Black "abelmat"]
[WhiteElo "2273"]
[BlackElo "1931"]
[Result "0-1"]
[Round "10"]
[TimeControl "180+1"]
[Date "2023.08.22"]
[WhiteClock "0:00:10"]
[BlackClock "0:00:13"]
[Board "159"]

1. e4 {[%clk 0:03:00]}  e6 {[%clk 0:02:59]} 2. d4 {[%clk 0:02:59]}  d5 {[%clk 0:03:00]} 3. Nc3 {[%clk 0:02:58]}  dxe4 {[%clk 0:02:59]} 4. Nxe4 {[%clk 0:02:58]}  Nd7 {[%clk 0:02:59]} 5. Nf3 {[%clk 0:02:57]}  Ngf6 {[%clk 0:02:59]} 6. Ng3 {[%clk 0:02:56]}  Be7 {[%clk 0:02:59]} 7. Bd3 {[%clk 0:02:54]}  O-O {[%clk 0:03:00]} 8. h4 {[%clk 0:02:53]}  b6 {[%clk 0:02:59]} 9. h5 {[%clk 0:02:52]}  Bb7 {[%clk 0:02:56]} 10. h6 {[%clk 0:02:50]}  g6 {[%clk 0:02:56]} 11. Qe2 {[%clk 0:02:50]}  Rc8 {[%clk 0:02:54]} 12. Bd2 {[%clk 0:02:33]}  c5 {[%clk 0:02:53]} 13. O-O-O {[%clk 0:02:33]}  a5 {[%clk 0:02:41]} 14. Kb1 {[%clk 0:02:32]}  a4 {[%clk 0:02:39]} 15. Bb5 {[%clk 0:02:29]}  Qc7 {[%clk 0:02:34]} 16. c4 {[%clk 0:02:06]}  Bxf3 {[%clk 0:02:23]} 17. Qxf3 {[%clk 0:02:05]}  cxd4 {[%clk 0:02:21]} 18. Bg5 {[%clk 0:01:54]}  Ne5 {[%clk 0:01:42]} 19. Qe2 {[%clk 0:01:25]}  Nxc4 {[%clk 0:01:29]} 20. Rc1 {[%clk 0:01:05]}  Qe5 {[%clk 0:00:42]} 21. Bxf6 {[%clk 0:00:43]}  Qxb5 {[%clk 0:00:24]} 22. Bxe7 {[%clk 0:00:37]}  d3 {[%clk 0:00:23]} 23. Rh5 {[%clk 0:00:14]}  Na3+ {[%clk 0:00:14]} 24. Ka1 {[%clk 0:00:10]}  Rxc1# {[%clk 0:00:13]} 0-1


[Site "https://www.chess.com"]

[Event "Titled Tuesday Blitz August 22 Early 2023"]
[White "Kuchava, Ana"]
[Black "Baghdasaryan, Vahe"]
[WhiteFideId "13605348"]
[BlackFideId "13303139"]
[WhiteElo "2180"]
[BlackElo "2380"]
[Result "1-0"]
[Round "10"]
[TimeControl "180+1"]
[Date "2023.08.22"]
[WhiteClock "0:00:50"]
[BlackClock "0:00:00"]
[Board "160"]

1. d4 {[%clk 0:03:00]}  d5 {[%clk 0:02:58]} 2. Nf3 {[%clk 0:03:00]}  Nf6 {[%clk 0:02:56]} 3. c4 {[%clk 0:02:59]}  e6 {[%clk 0:02:55]} 4. Nc3 {[%clk 0:02:59]}  Be7 {[%clk 0:02:54]} 5. Bf4 {[%clk 0:02:53]}  O-O {[%clk 0:02:51]} 6. e3 {[%clk 0:02:52]}  b6 {[%clk 0:02:51]} 7. Bd3 {[%clk 0:02:40]}  Bb7 {[%clk 0:02:44]} 8. cxd5 {[%clk 0:02:35]}  Nxd5 {[%clk 0:02:41]} 9. Nxd5 {[%clk 0:02:33]}  Bxd5 {[%clk 0:02:41]} 10. Qc2 {[%clk 0:02:31]}  Nc6 {[%clk 0:02:09]} 11. Bxh7+ {[%clk 0:02:23]}  Kh8 {[%clk 0:02:09]} 12. Be4 {[%clk 0:01:51]}  Nb4 {[%clk 0:01:44]} 13. Qb1 {[%clk 0:01:51]}  f5 {[%clk 0:01:08]} 14. Bxd5 {[%clk 0:01:47]}  Nxd5 {[%clk 0:01:05]} 15. O-O {[%clk 0:01:44]}  g5 {[%clk 0:00:49]} 16. Be5+ {[%clk 0:01:40]}  Kg8 {[%clk 0:00:48]} 17. e4 {[%clk 0:01:36]}  Nf4 {[%clk 0:00:32]} 18. Bxf4 {[%clk 0:01:25]}  gxf4 {[%clk 0:00:29]} 19. exf5 {[%clk 0:01:25]}  Rxf5 {[%clk 0:00:28]} 20. Qe4 {[%clk 0:01:24]}  Qc8 {[%clk 0:00:18]} 21. Rfe1 {[%clk 0:01:22]}  Kf7 {[%clk 0:00:15]} 22. Rac1 {[%clk 0:01:12]}  c5 {[%clk 0:00:11]} 23. dxc5 {[%clk 0:01:09]}  Bxc5 {[%clk 0:00:11]} 24. b4 {[%clk 0:01:05]}  Bxf2+ {[%clk 0:00:07]} 25. Kxf2 {[%clk 0:01:03]}  Qe8 {[%clk 0:00:07]} 26. Rc7+ {[%clk 0:01:01]}  Kf6 {[%clk 0:00:06]} 27. Rc6 {[%clk 0:00:53]}  Kf7 {[%clk 0:00:00]} 28. Rxe6 {[%clk 0:00:50]} 1-0


[Site "https://www.chess.com"]

[Event "Titled Tuesday Blitz August 22 Early 2023"]
[White "Vaglio Munoz, Jaime"]
[Black "Floresvillar Gonzalez, Luis Migu"]
[WhiteFideId "6500145"]
[BlackFideId "5100542"]
[WhiteElo "2303"]
[BlackElo "2128"]
[Result "1-0"]
[Round "10"]
[TimeControl "180+1"]
[Date "2023.08.22"]
[WhiteClock "0:00:28"]
[BlackClock "0:00:00"]
[Board "161"]

1. Nf3 {[%clk 0:02:10]}  c6 {[%clk 0:03:00]} 2. c4 {[%clk 0:02:09]}  d5 {[%clk 0:02:57]} 3. b3 {[%clk 0:02:09]}  Bf5 {[%clk 0:02:55]} 4. Bb2 {[%clk 0:02:09]}  e6 {[%clk 0:02:52]} 5. d3 {[%clk 0:02:09]}  Nf6 {[%clk 0:02:51]} 6. g3 {[%clk 0:02:10]}  Nbd7 {[%clk 0:02:49]} 7. Bg2 {[%clk 0:02:10]}  Bb4+ {[%clk 0:02:45]} 8. Nbd2 {[%clk 0:02:07]}  O-O {[%clk 0:02:45]} 9. O-O {[%clk 0:02:07]}  Re8 {[%clk 0:02:44]} 10. a3 {[%clk 0:02:07]}  Be7 {[%clk 0:02:42]} 11. Nh4 {[%clk 0:02:02]}  Bg4 {[%clk 0:02:41]} 12. h3 {[%clk 0:02:02]}  Bh5 {[%clk 0:02:41]} 13. Re1 {[%clk 0:02:00]}  Qb6 {[%clk 0:02:21]} 14. Qc2 {[%clk 0:01:57]}  Rac8 {[%clk 0:02:19]} 15. b4 {[%clk 0:01:56]}  a5 {[%clk 0:02:14]} 16. c5 {[%clk 0:01:50]}  Qc7 {[%clk 0:02:09]} 17. e4 {[%clk 0:01:48]}  dxe4 {[%clk 0:02:03]} 18. dxe4 {[%clk 0:01:47]}  e5 {[%clk 0:01:59]} 19. Nf5 {[%clk 0:01:45]}  Bf8 {[%clk 0:01:56]} 20. Nc4 {[%clk 0:01:44]}  Bg6 {[%clk 0:01:51]} 21. Nfd6 {[%clk 0:01:36]}  axb4 {[%clk 0:01:40]} 22. axb4 {[%clk 0:01:36]}  b5 {[%clk 0:01:40]} 23. Nxe8 {[%clk 0:01:34]}  Nxe8 {[%clk 0:01:26]} 24. Ne3 {[%clk 0:01:32]}  Nef6 {[%clk 0:01:23]} 25. g4 {[%clk 0:01:30]}  Nd5 {[%clk 0:01:19]} 26. Qb3 {[%clk 0:01:23]}  Nf4 {[%clk 0:01:18]} 27. Bf1 {[%clk 0:01:22]}  h6 {[%clk 0:01:07]} 28. Nf5 {[%clk 0:01:20]}  Bxf5 {[%clk 0:01:06]} 29. gxf5 {[%clk 0:01:21]}  Nf6 {[%clk 0:01:02]} 30. Qc3 {[%clk 0:01:12]}  Re8 {[%clk 0:00:54]} 31. f3 {[%clk 0:01:11]}  Nd7 {[%clk 0:00:47]} 32. Ra6 {[%clk 0:01:07]}  Be7 {[%clk 0:00:46]} 33. Rea1 {[%clk 0:01:06]}  Bg5 {[%clk 0:00:38]} 34. Ra7 {[%clk 0:01:03]}  Qd8 {[%clk 0:00:37]} 35. Rd1 {[%clk 0:01:01]}  Re7 {[%clk 0:00:34]} 36. Rd6 {[%clk 0:00:50]}  Bh4 {[%clk 0:00:33]} 37. Qd2 {[%clk 0:00:48]}  Kh7 {[%clk 0:00:24]} 38. Rdxd7 {[%clk 0:00:47]}  Rxd7 {[%clk 0:00:24]} 39. Rxd7 {[%clk 0:00:44]}  Qg5+ {[%clk 0:00:25]} 40. Kh1 {[%clk 0:00:43]}  Qg3 {[%clk 0:00:23]} 41. Bg2 {[%clk 0:00:40]}  Nxh3 {[%clk 0:00:20]} 42. Bxe5 {[%clk 0:00:37]}  Nf2+ {[%clk 0:00:17]} 43. Kg1 {[%clk 0:00:36]}  Qxe5 {[%clk 0:00:15]} 44. Rxf7 {[%clk 0:00:33]}  Qa1+ {[%clk 0:00:14]} 45. Bf1 {[%clk 0:00:31]}  Qe5 {[%clk 0:00:13]} 46. f6 {[%clk 0:00:30]}  Qg3+ {[%clk 0:00:13]} 47. Bg2 {[%clk 0:00:29]}  Nh3+ {[%clk 0:00:12]} 48. Kf1 {[%clk 0:00:29]}  Bxf6 {[%clk 0:00:05]} 49. Rxf6 {[%clk 0:00:29]}  gxf6 {[%clk 0:00:04]} 50. Qd7+ {[%clk 0:00:29]}  Kg8 {[%clk 0:00:00]} 51. Qxh3 {[%clk 0:00:28]} 1-0


[Site "https://www.chess.com"]

[Event "Titled Tuesday Blitz August 22 Early 2023"]
[White "Wang, Alexander J"]
[Black "KSho99"]
[WhiteFideId "30955270"]
[WhiteElo "2272"]
[BlackElo "2219"]
[Result "1/2-1/2"]
[Round "10"]
[TimeControl "180+1"]
[Date "2023.08.22"]
[WhiteClock "0:00:07"]
[BlackClock "0:00:06"]
[Board "163"]

1. e4 {[%clk 0:02:59]}  b6 {[%clk 0:02:59]} 2. d4 {[%clk 0:02:44]}  Bb7 {[%clk 0:02:59]} 3. Nc3 {[%clk 0:02:40]}  e6 {[%clk 0:02:53]} 4. Nf3 {[%clk 0:02:40]}  d6 {[%clk 0:02:52]} 5. Bd3 {[%clk 0:02:29]}  Nd7 {[%clk 0:02:52]} 6. O-O {[%clk 0:02:19]}  Ne7 {[%clk 0:02:50]} 7. Bg5 {[%clk 0:02:12]}  h6 {[%clk 0:02:50]} 8. Bf4 {[%clk 0:02:07]}  g5 {[%clk 0:02:49]} 9. Bg3 {[%clk 0:02:06]}  Bg7 {[%clk 0:02:43]} 10. Ne2 {[%clk 0:01:51]}  Nf6 {[%clk 0:02:37]} 11. Nd2 {[%clk 0:01:47]}  Nh5 {[%clk 0:02:32]} 12. c3 {[%clk 0:01:41]}  O-O {[%clk 0:02:16]} 13. f3 {[%clk 0:01:32]}  Nxg3 {[%clk 0:02:16]} 14. hxg3 {[%clk 0:01:31]}  f5 {[%clk 0:02:10]} 15. g4 {[%clk 0:01:25]}  fxg4 {[%clk 0:02:00]} 16. fxg4 {[%clk 0:01:26]}  Qd7 {[%clk 0:02:00]} 17. Ng3 {[%clk 0:01:16]}  Rxf1+ {[%clk 0:01:49]} 18. Qxf1 {[%clk 0:01:15]}  Rf8 {[%clk 0:01:49]} 19. Qe2 {[%clk 0:01:15]}  Ng6 {[%clk 0:01:49]} 20. Nh5 {[%clk 0:01:12]}  Nf4 {[%clk 0:01:41]} 21. Nxf4 {[%clk 0:01:10]}  Rxf4 {[%clk 0:01:41]} 22. g3 {[%clk 0:01:09]}  Rf7 {[%clk 0:01:37]} 23. Rf1 {[%clk 0:01:04]}  c5 {[%clk 0:01:22]} 24. Qe3 {[%clk 0:00:55]}  Rxf1+ {[%clk 0:01:15]} 25. Bxf1 {[%clk 0:00:51]}  cxd4 {[%clk 0:00:53]} 26. cxd4 {[%clk 0:00:42]}  Qa4 {[%clk 0:00:52]} 27. Bc4 {[%clk 0:00:26]}  d5 {[%clk 0:00:15]} 28. exd5 {[%clk 0:00:20]}  exd5 {[%clk 0:00:08]} 29. Bd3 {[%clk 0:00:20]}  Qd1+ {[%clk 0:00:06]} 30. Kg2 {[%clk 0:00:19]}  Qxg4 {[%clk 0:00:06]} 31. Qe8+ {[%clk 0:00:17]}  Bf8 {[%clk 0:00:05]} 32. Qg6+ {[%clk 0:00:17]}  Bg7 {[%clk 0:00:06]} 33. Qe8+ {[%clk 0:00:10]}  Bf8 {[%clk 0:00:06]} 34. Qg6+ {[%clk 0:00:07]}  Bg7 {[%clk 0:00:06]} 35. Qe8+ {[%clk 0:00:07]} 1/2-1/2


[Site "https://www.chess.com"]